Cogmind - Beta 13 @@@ ROGUE MODE // 2024.04.02 @ 20:45:55 Player: Arc Result: Self-destructed Performance ------------- Evolutions (1) 500 Regions Visited (2) 400 Robots Destroyed (21) 105 Value Destroyed (396) 396 Prototype IDs (2) 40 Alien Tech Used (0) 0 Bonus (0) 0 TOTAL SCORE: 1441 Bonus ------- None Cogmind --------- Core Integrity 370/400 Matter 276/300 Energy 35/250 System Corruption 2% Temperature Cool (0) Movement Flying (26) Location -9/Materials Parts ------- > --- POWER (1) -------- Ion Engine > --- PROPULSION (4) --- Cesium-ion Thruster Cesium-ion Thruster Cesium-ion Thruster Cesium-ion Thruster > --- UTILITY (2) ------ Cooling System Improved Terrain Scan Processor > --- WEAPON (2) ------- Improved Medium Laser Improved Light Cannon > --- INVENTORY (5) ---- Faulty Improved Flight Unit Faulty Improved Flight Unit Beam Rifle Grenade Launcher Peak State ------------ > --- POWER ------------ Cooled Ion Engine > --- PROPULSION ------- Cesium-ion Thruster Cesium-ion Thruster Cesium-ion Thruster Cesium-ion Thruster > --- UTILITY ---------- Cooling System Improved Terrain Scan Processor > --- WEAPON ----------- Beam Rifle Improved Light Cannon > --- INVENTORY -------- Ion Engine Aluminum Leg Light Armor Plating Grenade Launcher [Rating: 24] Favorites ----------- Power Ion Engine Engine Ion Engine Propulsion Aluminum Leg Leg Aluminum Leg Flight Unit Cesium-ion Thruster Utility Light Armor Plating Device Cooling System Storage Medium Storage Unit Processor Improved Terrain Scan Processor Protection Light Armor Plating Weapon Light Assault Rifle Energy Gun EM Pulse Gun Ballistic Gun Light Assault Rifle Ballistic Cannon Improved Light Cannon Build | -11 -10 -9 ------- Run | Yrd Mat Mat Slots Evolved 2 | . . 2 Power . | . . . Propulsion 2 | . . 2 Utility . | . . . Weapon . | . . . Parts Attached 28 | 6 10 12 Power 4 | 1 . 3 Engine 4 | 1 . 3 Core . | . . . Reactor . | . . . Propulsion 8 | 2 2 4 Treads . | . . . Leg 4 | 2 2 . Wheel . | . . . Hover . | . . . Flight 4 | . . 4 Utility 9 | 1 6 2 Device 1 | . . 1 Storage 4 | 1 3 . Processor 1 | . . 1 Hackware . | . . . Protection 3 | . 3 . Artifact . | . . . Weapon 7 | 2 2 3 Energy Gun 4 | 1 1 2 Energy Cannon . | . . . Ballistic Gun 2 | 1 1 . Ballistic Cannon 1 | . . 1 Launcher . | . . . Special Weapon . | . . . Impact Weapon . | . . . Slashing Weapon . | . . . Piercing Weapon . | . . . Special Melee Weapon . | . . . Unidentified Prototypes 2 | . . 2 Parts Lost 3 | . 3 . Power . | . . . Propulsion . | . . . Utility 1 | . 1 . Weapon 2 | . 2 . Highest Loss Streak 2 | . 2 . To Critical Strikes . | . . . Average Slot Usage (%) 98 | . 98 94 Engine 13 | . 14 11 Leg 26 | . 28 4 Flight 2 | . . 34 Storage 13 | . 14 3 Protection 12 | . 12 7 Energy Gun 8 | . 8 6 Ballistic Gun 18 | . 18 8 Naked Turns . | . . . Heaviest Build 31 | 13 31 20 Greatest Support 20 | 20 20 20 Greatest Overweight (x) 1 | . 1 . Average Overweight (x) . | . . . Largest Inventory Capacity 15 | 8 15 10 Average Capacity 8 | 7 9 6 Most Carried 9 | 4 7 9 Average Carried 4 | 1 4 4 Final Capacity 10 | 8 10 5 Final Carried 4 | 1 4 4 Class Distribution -------------------- 96% | Mutant 3% | Sprinter Dominant Class ---------------- Mutant | -10/Materials Sprinter | -9/Materials Resources | -11 -10 -9 ----------- Run | Yrd Mat Mat Matter Collected 548 | 261 159 128 Remotely . | . . . Salvage Created 676 | 30 451 195 Parts 44 | 3 32 9 Haulers Intercepted 4 | . 2 2 Recyclers Shooed 1 | . 1 . Parts Field Recycled . | . . . Retrieved Matter . | . . . Parts Self-Destructed . | . . . Prevented . | . . . Kills | -11 -10 -9 ------- Run | Yrd Mat Mat Combat Hostiles Destroyed 14 | . 11 3 Guns 11 | . 11 . Cannons 3 | . . 3 Classes Destroyed 5 | 1 4 . Worker 1 | 1 . . Hauler 4 | . 2 2 Watcher 2 | . 2 . Swarmer 6 | . 6 . Grunt 8 | . 5 3 Best Kill Streak 5 | 1 4 5 Combat Bots Only 3 | . 3 3 Max Kills in Single Turn 1 | 1 1 1 Gunslinging . | . . . Exploded . | . . . Melee . | . . . Uniques/NPCs Destroyed . | . . . Combat | -11 -10 -9 -------- Run | Yrd Mat Mat Hostile Shots Fired 70 | . 64 6 Missed 19 | . 16 3 Damage Taken 551 | . 521 30 Core 98 | . 68 30 Absorbed by Shields . | . . . Core Remaining (%) 86 | 100 72 . Volleys Fired 75 | 1 66 8 Largest 2 | 2 2 2 Hottest 95 | 60 60 95 Shots Fired 129 | 2 111 16 Gun 121 | 2 111 8 Cannon 8 | . . 8 Launcher . | . . . Special . | . . . Kinetic 81 | 1 72 8 Thermal 8 | . . 8 Explosive . | . . . Electromagnetic 40 | 1 39 . Robot Hit Streak 8 | 1 8 4 Robot Miss Streak 5 | . 5 2 Penetration Max . | . . . Secondary Targets 2 | . 2 . Max Gunslinging Chain 1 | . 1 . Shots Hit Robots 76 | 1 64 11 Core Hits 35 | 1 27 7 Critical Kills 1 | . 1 . Critical Parts Destroyed . | . . . Critical Strikes 1 | . 1 . Destroy 1 | . 1 . Melee Attacks . | . . . Impact . | . . . Slashing . | . . . Piercing . | . . . Sneak Attacks . | . . . Combat Hostiles . | . . . Follow-up Attacks . | . . . Damage Inflicted 894 | 13 669 212 Guns 721 | 13 621 87 Cannons 125 | . . 125 Explosions 46 | . 46 . Melee . | . . . Ramming 2 | . 2 . Kinetic 469 | . 344 125 Thermal 133 | . 46 87 Explosive . | . . . Electromagnetic 290 | 13 277 . Impact . | . . . Slashing . | . . . Piercing . | . . . Highest Corruption 2 | . 1 2 Average Corruption 1 | . 1 2 Corruption Purged . | . . . Corruption Blocked . | . . . Overload Shots . | . . . Overflow Damage 16 | . 16 . Projectiles . | . . . Explosions 16 | . 16 . Melee . | . . . Knockbacks 1 | . . 1 Impact . | . . . Kinetic 1 | . . 1 Secondary . | . . . Self-Inflicted Damage 87 | . 87 . Shots 1 | . 1 . Rammed . | . . . Targets Rammed 1 | . 1 . Kicked 1 | . 1 . Crushed . | . . . Highest Temperature 186 | 20 186 110 Average Temperature 43 | 15 41 59 Received Heat Transfer 114 | . 96 18 Siege Activations . | . . . Robots Corrupted . | . . . Combat Hostiles . | . . . Parts Fried . | . . . Impact Corruptions . | . . . Robots Melted . | . . . Combat Hostiles . | . . . Parts Melted . | . . . Heat Transferred 272 | . 50 222 Parts Sabotaged . | . . . Parts Stolen . | . . . Parts Stripped . | . . . Power Chain Reactions 1 | . 1 . Alert | -11 -10 -9 ------- Run | Yrd Mat Mat Peak Influence 149 | 5 149 74 Initial 3 | . 3 . Average 54 | . 61 23 Maximum Alert Level . | . . . Low Security (%) 100 | 100 100 100 Level 1 . | . . . Level 2 . | . . . Level 3 . | . . . Level 4 . | . . . Level 5 . | . . . High Security . | . . . Max Security . | . . . Squads Dispatched 3 | . 3 . Investigation 1 | . 1 . Extermination . | . . . Reinforcement 2 | . 2 . Assault . | . . . Garrison . | . . . Intercept . | . . . Searches Triggered . | . . . Construction Impeded . | . . . Haulers Reinforced . | . . . Active Scanning Responses . | . . . Cargo Convoy Interrupts . | . . . Stealth | -11 -10 -9 --------- Run | Yrd Mat Mat Distress Signals 2 | . 1 1 Communications Jammed . | . . . Distress Signals . | . . . Times Spotted 25 | . 22 3 Peak Tracking Total 4 | . 4 2 Tactical Retreats 1 | . 1 . Traps | -11 -10 -9 ------- Run | Yrd Mat Mat Traps Triggered 3 | . 3 . Indirectly . | . . . Trap Hack Attempts . | . . . Triggered . | . . . Disarmed . | . . . Reprogrammed . | . . . Reused . | . . . Traps Extracted . | . . . Installed . | . . . Triggered . | . . . Machines | -11 -10 -9 ---------- Run | Yrd Mat Mat Machines Disabled 1 | . 1 . Max in Single Turn 1 | . 1 . Machines Repaired . | . . . Machines Dismantled . | . . . Machines Sabotaged . | . . . Overloaded Fab Kills . | . . . Hacking | -11 -10 -9 --------- Run | Yrd Mat Mat Machines Accessed 8 | . 8 . Terminals 6 | . 6 . Fabricators . | . . . Repair Stations . | . . . Recycling Units 2 | . 2 . Scanalyzers . | . . . Garrison Access . | . . . Total Hacks 15 | . 15 . Successful 9 | . 9 . Failed 6 | . 6 . Catastrophic 2 | . 2 . Database Lockouts . | . . . Manual . | . . . Terminals 13 | . 13 . Fabricators . | . . . Repair Stations . | . . . Recycling Units 2 | . 2 . Scanalyzers . | . . . Garrison Access . | . . . Terminal Hacks 8 | . 8 . Record 1 | . 1 . Locate Traps 2 | . 2 . Dispatch Records 1 | . 1 . Security Status 1 | . 1 . Surveillance Status 1 | . 1 . Investigation Status 1 | . 1 . Recall Investigation 1 | . 1 . Fabricator Hacks . | . . . Repair Station Hacks . | . . . Recycling Unit Hacks 1 | . 1 . Report Inventory 1 | . 1 . Scanalyzer . | . . . Garrison Access Hacks . | . . . Unauthorized Hacks . | . . . Terminals . | . . . Fabricators . | . . . Repair Stations . | . . . Recycling Units . | . . . Scanalyzers . | . . . Garrison Access . | . . . Data Cores Recovered . | . . . Used . | . . . Hacking Detections 6 | . 6 . Full Trace Events 1 | . 1 . Feedback Events . | . . . Feedback Blocked . | . . . Robot Schematics Acquired . | . . . Robots Built . | . . . Authchips . | . . . Time . | . . . Total Robot Build Rating . | . . . Part Schematics Acquired . | . . . Parts Built . | . . . Authchips . | . . . Time . | . . . Total Part Build Rating . | . . . Parts Repaired . | . . . Time . | . . . Parts Recycled . | . . . Recycled Matter . | . . . Retrieved Matter . | . . . Retrieved Components . | . . . Parts Scanalyzed . | . . . Part Schematics Acquired . | . . . Parts Damaged . | . . . Bothacking | -11 -10 -9 ------------ Run | Yrd Mat Mat Used RIF Installer . | . . . Robots Hacked . | . . . Non-combat . | . . . Combat . | . . . Robot Hacks Applied . | . . . Relay Couplers Released . | . . . Fabnet Peak Effective % . | . . . Robots Rewired . | . . . Allies Hacked . | . . . Hacks Repelled . | . . . Allies | -11 -10 -9 -------- Run | Yrd Mat Mat Total Allies . | . . . Largest Group . | . . . Highest-Rated Group . | . . . Highest-Rated Ally . | . . . Total Orders . | . . . Ally Attacks . | . . . Total Damage . | . . . Kills . | . . . Allies Corrupted . | . . . Allies Melted . | . . . Intel | -11 -10 -9 ------- Run | Yrd Mat Mat Robot Analysis Total . | . . . Derelict Logs Recovered . | . . . Drone Launches . | . . . Drone Recoveries . | . . . Exploration | -11 -10 -9 ------------- Run | Yrd Mat Mat Turns Passed 1557 | 103 1359 95 Spaces Moved 1023 | 77 879 67 Core 6 | 6 . . Treads . | . . . Legs 964 | 71 879 14 Wheels . | . . . Hover . | . . . Flight 53 | . . 53 Fastest Speed 26 | 50 120 26 Average Speed 125 | 114 132 45 Slowest Speed 190 | 120 190 120 Overloaded Moves . | . . . Propulsion Burnouts . | . . . Robots Hopped 1 | . . 1 Cave-ins Triggered . | . . . Exploration Rate (%) 36 | 5 99 6 Regions Visited 2 Branch Regions . Pre-discovered Areas . | . . . Known Exits Taken . | . . . Unknown Exits Taken 2 | 1 1 . Scrap Searched . | . . . Spaces Dug . | . . . Terrain Destroyed 33 | . 33 . Melee . | . . . Projectile . | . . . AOE 33 | . 33 . Terrain Rammed . | . . . Walls Destroyed . | . . . Machines Disabled . | . . . Actions | -11 -10 -9 --------- Run | Yrd Mat Mat Total 1184 | 90 979 115 Wait 15 | . 8 7 Move 1019 | 76 878 65 Hop 1 | . . 1 Pick Up 32 | 7 13 12 Fast Attach . | . . . Attach 16 | 6 5 5 Detach 2 | . . 2 Swap 12 | . 5 7 Drop 11 | . 3 8 Fire 75 | 1 66 8 Melee . | . . . Ram . | . . . Kick 1 | . 1 . Crush . | . . . Escape Stasis . | . . . Rewire . | . . . Trap . | . . . Miscellaneous . | . . . Route ------- -11/Scrapyard -10/Materials (discovered 4 exits: [*Mat x3] / [*Min]) -9/Materials History --------- Turn | Location | Event 4 | -11/Scrapyard | Discovered new exit (range 15) 104 | -11/Scrapyard | Entered Materials 189 | -10/Materials | Discovered new exit (range 15) 311 | -10/Materials | Build established: Mutant 327 | -10/Materials | Discovered new exit (range 11) 1276 | -10/Materials | Discovered new exit (range 13) 1455 | -10/Materials | Discovered new exit (range 5) 1463 | -10/Materials | Entered another Materials area 1463 | -9/Materials | Evolved 2 slots: Propulsion x2 1558 | -9/Materials | Self-destructed Last Messages --------------- Acquired 3 matter. Acquired 39 matter. A-02 Transporter destroyed. A-02 Transporter sends out distress signal. G-34 Mercenary destroyed. A-02 Transporter destroyed. R-06 Scavenger collects Med. Storage Unit. Acquired 3 matter. Dropped Ion Engine. Dropped Lgt. Ion Engine. Acquired Prototype Engine. Identified Cld. Ion Engine. Faulty integration triggers system corruption (+2). Dropped Faulty Cld. Ion Engine. Acquired Prototype Flight Unit. Dropped Lgt. Armor Plating. Dropped Aluminum Leg. Acquired Prototype Energy Gun. Identified Imp. Medium Laser. Acquired 51 matter. Map ----- +----------------------------------------------------+ | ?????????????????????????????????????????????????? | | ?????????????????????????????????????????????????? | | ?????????????????????????????????????????????????? | | ?????????????????????????????????????????????????? | | ?????????????????????????????????????????????????? | | ?????????????????????????????????????????????????? | | ?????????????????????????????????????????????????? | | ????????????????????###########??????????????????? | | ????????????????????# #??????????????????? | | ????????????????????# """ """ #??????????????????? | | ????????????????????# """ """ #??????????????????? | | ????????????????????# """ """ #??????????????????? | | ????????????????????# ########???????????? | | ????????????????????# # //!!#???????????? | | ????????????????????# # // !#???????????? | | ????????????????????#[ = # = #???????????? | | ???????????##############+##### #####???????? | | ????????? r #???????? | | ????????? #???????? | | ????????? #???????? | | ???????????#############[! ########### #???????? | | ???????????????????????#%[*#?????? ## #???????? | | ???????????????????????#[ #???? ## #???????? | | ???????????????????????#!! #?? ## ????? | | ?????????????????#######!! # ######## #?? | | ??????????????+ **%@=+ #?????????##?? | | ?????????????????#######=%*# #????????????? | | ???????????????????????###*#?? #????????????? | | ?????????????????????????# #???? #????????????? | | ?????????????????????????# #?????? #????????????? | | ?????????????????????????# #????????#????????????? | | ?????????????????????????# #?????????????????????? | | ?????????????????????????? #?????????????????????? | | ??????????????????????????##?????????????????????? | | ?????????????????????????????????????????????????? | | ?????????????????????????????????????????????????? | | ?????????????????????????????????????????????????? | | | | | | | | | | | | | | | | | | | | | | | | | | | +----------------------------------------------------+ Best States ------------- Heat Dissipation 50 Energy Generation 10 Energy Capacity 250 Matter Stores 300 Matter Capacity 300 Sight Range 16 Terrain Scan Density 110 Armor Coverage 150 Evasion (%) 64 Item Schematics ----------------- None Robot Schematics ------------------ None Fabricated ------------ Nothing Alien Tech Used ----------------- None Achievements -------------- GoHome() Challenges ------------ None Game ------ Seed AnalysisHugeClaymores Manual? 0 Play Time 00:26:58 Cumulative 4.1 hours Start 2024.04.02 @ 20:20:13 End 2024.04.02 @ 20:45:55 Sessions 1 Manual Loads 0 Difficulty Rogue Special Mode None Game No. 4 Rogue 4 Adventurer 0 Explorer 0 Win Type - Total 0 Types 0/0/0/0/0/0/0/0/0 Lore% 1 Gallery% 7 Achievement% 9 Wizard Run 0 Options --------- Layout 1 ASCII 0 Keyboard 0 Movement Mouse Keybinds 0 Fullscreen 1 Font 16/SmallcapsGlow Map View 55x38 Zoom Use 0% Tactical HUD 0 Map Filters NONE Filters NONE Steam 1 RUN: 2bb8a171-92d2-432d-9ea8-57f3abfbd152